bitfinex-derivatives/quotes_ETHF0:USTF0_20250404
["timestamp","ask_amount","ask_price","bid_price","bid_amount"]
[1743727691166,3.666,1813.2,1813.1,4.3113]
[1743727691757,4.76944,1813.2,1813.1,4.3113]
[1743727692353,4.76944,1813.2,1813.1,1.1035]
[1743727692558,3.666,1813.2,1813.1,1.1035]
[1743727693565,5.1081,1813.2,1813.1,1.1035]
[1743727694467,5.1081,1813.2,1813.1,4.3113]
[1743727695370,3.666,1813.2,1813.1,4.3113]
[1743727696364,4.76944,1813.2,1813.1,4.3113]
[1743727696566,3.666,1813.2,1813.1,4.3113]
[1743727697164,5.0949,1813.2,1813.1,4.3113]
[1743727697665,6.19834,1813.2,1813.1,4.3113]
[1743727699167,5.0949,1813.2,1813.1,4.3113]
[1743727699674,5.0949,1813.2,1813.1,5.7063]
[1743727700173,5.0949,1813.2,1812.9,5.96673]
[1743727700471,1.412,1813.1,1813.0,1.10351]
[1743727700959,2.5155,1813.1,1813.0,1.10351]
[1743727702174,6.1815,1813.1,1813.0,1.10351]
[1743727702774,6.1815,1813.1,1812.9,2.4961]
[1743727702963,2.51556,1813.0,1812.9,2.4961]
[1743727703168,1.412,1813.0,1812.9,2.4961]
[1743727703368,2.51556,1813.0,1812.9,2.4961]
[1743727704069,2.51556,1813.0,1812.9,1.3925]
[1743727704576,1.10362,1812.9,1812.8,1.5006]
[1743727704872,2.60972,1812.9,1812.8,4.10388]
[1743727705373,1.1037,1812.8,1812.6,2.75949]
[1743727705577,6.2768,1812.8,1812.7,1.10368]
[1743727705876,6.27678,1812.8,1812.7,2.60328]
[1743727706177,5.1731,1812.8,1812.7,2.60328]
[1743727706373,6.27678,1812.8,1812.7,2.60328]
[1743727708177,1.10374,1812.7,1812.6,1.83516]
[1743727708569,2.50824,1812.7,1812.6,1.83516]
[1743727708777,1.4045,1812.7,1812.6,1.83516]
[1743727708978,2.50824,1812.7,1812.6,1.83516]
[1743727709277,2.50824,1812.7,1812.6,3.34036]
[1743727713275,1.4045,1812.7,1812.6,3.34036]
[1743727714076,1.4655,1812.9,1812.8,1.10368]
[1743727714283,5.1325,1812.9,1812.8,1.10368]
[1743727714477,1.4655,1812.9,1812.8,1.10368]
[1743727714784,5.00986,1813.0,1812.9,1.10362]
[1743727714979,8.67686,1813.0,1812.9,1.10362]
[1743727715177,7.5733,1813.0,1812.9,1.10362]
[1743727715584,10.14236,1813.0,1812.9,3.24092]
[1743727715977,9.0388,1813.0,1812.9,3.24092]
[1743727716173,10.14236,1813.0,1812.9,2.1373]
[1743727716584,9.0388,1813.0,1812.9,3.24092]
[1743727716977,8.3403,1813.0,1812.9,3.24092]
[1743727717783,4.6733,1813.0,1812.9,3.24092]
[1743727717984,8.3403,1813.0,1812.9,3.24092]
[1743727718185,9.44386,1813.0,1812.9,2.1373]
[1743727718378,4.6733,1813.0,1812.9,2.1373]
[1743727718578,1.3809,1813.2,1813.1,1.1035]
[1743727718776,6.15134,1813.2,1813.1,1.1035]
[1743727718977,5.0479,1813.2,1813.1,1.1035]
[1743727720586,6.15134,1813.2,1813.1,1.1035]
[1743727720883,5.0479,1813.2,1813.1,1.1035]
[1743727721280,4.77044,1813.2,1813.1,1.1035]
[1743727721778,3.667,1813.2,1813.1,1.1035]
[1743727722175,3.667,1813.2,1813.1,2.6174]
[1743727723985,1.80351331,1813.4,1813.1,1.5139]
[1743727724185,1.80351331,1813.4,1813.2,4.06604]
[1743727724186,4.77038,1813.3,1813.2,4.06604]
[1743727724386,3.667,1813.3,1813.2,2.55214]
[1743727724586,4.77038,1813.3,1813.2,2.55214]
[1743727724787,3.667,1813.3,1813.2,2.55214]
[1743727725588,4.77038,1813.3,1813.2,2.55214]
[1743727726492,3.667,1813.3,1813.2,2.55214]
[1743727728386,3.667,1813.3,1813.2,5.75994]
[1743727730188,3.667,1813.3,1813.2,2.55214]
[1743727730894,3.667,1813.3,1813.2,5.75994]
[1743727731291,3.667,1813.3,1813.2,2.55214]
[1743727731492,5.053,1813.3,1813.2,2.55214]
[1743727731789,6.15638,1813.3,1813.2,1.80324]
[1743727732192,5.053,1813.3,1813.2,1.80324]
[1743727732388,6.15638,1813.3,1813.2,1.80324]
[1743727732596,6.15638,1813.3,1813.2,1.10344]
[1743727733097,5.053,1813.3,1813.2,1.10344]
[1743727733997,5.053,1813.3,1813.2,4.31124]
[1743727734692,3.667,1813.3,1813.2,4.31124]
[1743727734895,0.00826331,1813.4,1813.3,1.10338]
[1743727735096,3.67426331,1813.4,1813.3,1.84568]
[1743727736388,0.00826331,1813.4,1813.3,1.84568]
[1743727736588,3.67426331,1813.4,1813.3,1.84568]
[1743727738600,3.67426331,1813.4,1813.3,3.36238]
[1743727740201,4.77757331,1813.4,1813.3,3.36238]
[1743727740401,6.28367331,1813.4,1813.3,3.36238]
[1743727740801,6.28367331,1813.4,1813.3,1.10338]
[1743727742694,5.18036331,1813.4,1813.3,1.10338]
[1743727743099,6.28367331,1813.4,1813.3,1.10338]
[1743727743506,5.18036331,1813.4,1813.3,1.10338]
[1743727744709,6.28367331,1813.4,1813.3,1.10338]
[1743727745009,0.00826331,1813.4,1813.3,1.10338]
[1743727745209,3.67326331,1813.4,1813.3,2.50818]
[1743727748212,0.00826331,1813.4,1813.3,2.50818]
[1743727749106,2.76670331,1813.4,1813.1,0.7577]
[1743727749305,1.10344,1813.2,1813.1,0.7577]
[1743727749514,4.76844,1813.2,1813.1,1.8612]
[1743727749812,4.76844,1813.2,1813.1,1.1035]
[1743727750013,1.1035,1813.1,1813.0,5.00701]
[1743727750306,1.4114,1813.1,1813.0,3.2078]
[1743727750510,2.5149,1813.1,1813.0,4.31136]
[1743727750813,1.4114,1813.1,1813.0,4.31136]
[1743727751115,1.4114,1813.1,1813.0,1.10356]
[1743727751313,2.1285,1813.1,1813.0,1.10356]
[1743727752216,2.1285,1813.1,1812.9,1.79608]
[1743727752516,1.4114,1813.0,1812.9,1.10358]
[1743727752815,1.4114,1813.0,1812.8,3.2078]
[1743727753008,3.665,1812.9,1812.8,4.31148]
[1743727753208,3.665,1812.9,1812.8,5.78048]
[1743727756216,4.76862,1812.9,1812.8,5.78048]
[1743727756616,3.665,1812.9,1812.8,5.78048]
[1743727756818,4.76862,1812.9,1812.8,5.78048]
[1743727757219,3.665,1812.9,1812.8,5.78048]
[1743727763219,1.11159331,1813.4,1812.8,7.1768]
[1743727763422,3.24459331,1813.4,1813.3,1.10338]
[1743727763618,6.90959331,1813.4,1813.3,1.10338]
[1743727763918,3.24459331,1813.4,1813.3,1.10338]
[1743727764124,6.90957331,1813.4,1813.3,1.10338]
[1743727766818,5.80626331,1813.4,1813.3,1.10338]
[1743727768322,5.80626331,1813.4,1813.3,3.22008]
[1743727770231,6.90957331,1813.4,1813.3,3.22008]
[1743727770834,6.90957331,1813.4,1813.3,1.80218]
[1743727772431,5.80626331,1813.4,1813.3,1.80218]
[1743727772731,6.90957331,1813.4,1813.3,3.17828]
[1743727774333,6.90957331,1813.4,1813.3,1.80218]
[1743727775136,5.80626331,1813.4,1813.3,1.80218]
[1743727775338,6.90957331,1813.4,1813.3,1.80218]
[1743727775636,6.90957331,1813.4,1813.3,3.21198]
[1743727775829,5.80626331,1813.4,1813.3,3.21198]
[1743727776024,5.05006331,1813.4,1813.3,3.21198]
[1743727776230,0.00826331,1813.4,1813.3,3.21198]
[1743727776425,3.67226331,1813.4,1813.3,3.21198]
[1743727777731,0.00826331,1813.4,1813.3,11.68198]
[1743727778134,3.31e-06,1813.4,1813.3,11.68198]
[1743727780736,3.31e-06,1813.4,1813.3,15.34598]
[1743727782843,3.31e-06,1813.4,1813.3,9.18198]
[1743727783331,3.66300331,1813.4,1813.3,9.18198]
[1743727785341,3.31e-06,1813.4,1813.3,9.18198]
[1743727787042,3.31e-06,1813.4,1813.3,7.77218]
[1743727787244,1.47470331,1813.4,1813.3,7.77218]
[1743727787442,1.47470331,1813.4,1813.3,9.21768]
[1743727788241,3.31e-06,1813.4,1813.3,9.21768]
[1743727790437,1.45890331,1813.4,1813.3,9.21768]
[1743727792035,1.45890331,1813.4,1813.3,7.07338]
[1743727793644,1.45890331,1813.4,1813.3,1.10338]
[1743727794041,3.31e-06,1813.4,1813.3,2.62848]
[1743727799048,3.31e-06,1813.4,1813.3,5.12848]
[1743727799641,3.31e-06,1813.4,1813.3,11.09848]
[1743727810051,1.10279,1814.3,1814.1,1.10289]
[1743727810052,3.662,1814.2,1814.1,1.10289]
[1743727810257,4.4091,1814.2,1814.1,1.10289]
[1743727810449,5.8959,1814.2,1814.1,1.10289]
[1743727810652,2.2339,1814.2,1814.1,1.10289]
[1743727811350,2.2339,1814.2,1814.1,2.62649]
[1743727811756,1.4868,1814.2,1814.1,3.32189]
[1743727813053,1.4868,1814.2,1814.1,1.10289]
[1743727814361,1.4868,1814.2,1814.1,2.49499]
[1743727818267,1.4868,1814.2,1814.1,1.10289]
[1743727820173,3.30543,1814.2,1814.1,1.10289]
[1743727821174,2.2026,1814.2,1814.1,1.10289]
[1743727823076,3.30543,1814.2,1814.1,1.10289]
[1743727823375,2.2026,1814.2,1814.1,1.10289]
[1743727825077,3.30543,1814.2,1814.1,1.10289]
[1743727825377,2.2026,1814.2,1814.1,1.10289]
[1743727826578,3.31e-06,1814.3,1814.2,1.10283]
[1743727826769,3.31e-06,1814.3,1814.2,5.77963]
[1743727826971,3.31e-06,1814.3,1814.2,7.19413]
[1743727829573,3.31e-06,1814.3,1814.2,13.16413]
[1743727840085,3.31e-06,1814.3,1814.2,15.66413]
[1743727840284,3.31e-06,1814.3,1814.2,13.16413]
[1743727840479,3.65900331,1814.3,1814.2,4.31063]
[1743727841689,6.15807331,1814.3,1814.2,4.31063]
[1743727841892,5.05530331,1814.3,1814.2,4.31063]
[1743727842288,6.15807331,1814.3,1814.2,4.31063]
[1743727842494,8.65807331,1814.3,1814.2,4.31063]
[1743727842690,8.65807331,1814.3,1814.2,1.10283]
[1743727842891,11.86587331,1814.3,1814.2,1.10283]
[1743727843592,7.55530331,1814.3,1814.2,1.10283]
[1743727843789,5.05530331,1814.3,1814.2,1.10283]
[1743727845696,5.05530331,1814.3,1814.2,2.55353]
[1743727849801,3.65900331,1814.3,1814.2,3.27113]
[1743727855401,3.65900331,1814.3,1814.2,1.10283]
[1743727855791,5.06320331,1814.3,1814.2,1.10283]
[1743727856799,6.16597331,1814.3,1814.2,1.10283]
[1743727856999,5.06320331,1814.3,1814.2,1.10283]
[1743727857305,8.66597331,1814.3,1814.2,1.10283]
[1743727858399,5.06320331,1814.3,1814.2,1.10283]
[1743727859202,8.66597331,1814.3,1814.2,1.10283]
[1743727862102,1.10304,1813.9,1813.8,1.10299]
[1743727862300,4.76104,1813.9,1813.8,1.10299]
[1743727862501,7.26104,1813.9,1813.8,1.10299]
[1743727862699,10.14524,1813.9,1813.8,1.10299]
[1743727862896,5.8261,1813.9,1813.8,1.10299]
[1743727863207,4.3897,1813.9,1813.8,4.31079]
[1743727863504,5.49271,1813.9,1813.8,1.10299]
[1743727863710,10.14521,1813.9,1813.8,1.10307]
[1743727864708,9.0422,1813.9,1813.8,1.10307]
[1743727864903,10.14521,1813.9,1813.8,1.10307]
[1743727865109,1.10307,1813.8,1813.7,2.56418]
[1743727865312,2.53237,1813.8,1813.7,2.56418]
[1743727867006,2.53237,1813.8,1813.7,1.10308]
[1743727867607,1.4293,1813.8,1813.7,2.52788]
[1743727867809,2.53237,1813.8,1813.7,2.52788]
[1743727868711,3.9293,1813.8,1813.5,1.5022]
[1743727868917,1.10324,1813.6,1813.5,1.10319]
[1743727869117,4.76224,1813.6,1813.5,1.10319]
[1743727869318,4.76224,1813.6,1813.5,2.61989]
[1743727869609,3.659,1813.6,1813.5,2.61989]
[1743727872317,3.659,1813.6,1813.5,5.82769]
[1743727882214,5.8599,1813.6,1813.5,5.82769]
[1743727882415,6.96309,1813.6,1813.5,1.10319]
[1743727884424,3.659,1813.6,1813.5,1.10319]
[1743727884721,3.659,1813.6,1813.5,2.57579]
[1743727884923,3.659,1813.6,1813.5,5.78359]
[1743727885424,3.659,1813.6,1813.5,2.57579]
[1743727888428,3.659,1813.6,1813.5,1.10319]
[1743727888627,7.70659,1813.6,1813.5,1.10319]
[1743727889228,6.6034,1813.6,1813.5,1.10319]
[1743727889428,7.70659,1813.6,1813.5,1.10319]
[1743727889931,1.10304,1813.9,1813.8,1.10301]
[1743727890118,7.35260404,1813.9,1813.8,1.10301]
[1743727890319,7.26104,1813.9,1813.8,1.10301]
[1743727891229,1.10313,1813.8,1813.7,1.10309]
[1743727891433,3.27733,1813.8,1813.7,2.52909]
[1743727891925,1.10319,1813.7,1813.6,1.10315]
[1743727892118,3.21519,1813.7,1813.4,10.84263]
[1743727892324,4.76125,1813.6,1813.5,1.10321]
[1743727892533,6.17975,1813.6,1813.5,1.10321]
[1743727893435,1.10325,1813.5,1813.4,8.49929]
[1743727893636,3.20305,1813.5,1813.4,1.10329]
[1743727893836,1.10338,1813.4,1813.3,1.10334]
[1743727894137,2.49778,1813.4,1813.3,1.10334]
[1743727899243,1.3944,1813.4,1813.3,1.10334]
[1743727899636,2.49771,1813.4,1813.3,2.50784]
[1743727899837,1.3944,1813.4,1813.3,2.50784]
[1743727900037,2.49771,1813.4,1813.3,2.50784]
[1743727900238,1.3944,1813.4,1813.3,2.50784]
[1743727900943,2.49771,1813.4,1813.3,2.50784]
[1743727901440,1.3944,1813.4,1813.3,2.50784]
[1743727901633,2.49771,1813.4,1813.3,2.50784]
[1743727902941,1.3944,1813.4,1813.3,2.50784]
[1743727903847,1.3944,1813.4,1813.3,5.71564]
[1743727904049,2.49771,1813.4,1813.3,5.71564]
[1743727904251,1.3944,1813.4,1813.3,5.71564]
[1743727904551,1.80867,1813.5,1813.4,1.10331]
[1743727904743,1.80867,1813.5,1813.4,3.22491]
[1743727906151,2.52274,1813.6,1813.5,1.10325]
[1743727906350,6.18074,1813.6,1813.5,2.57365]
[1743727908354,6.18074,1813.6,1813.5,1.4704]
[1743727908852,1.10325,1813.5,1813.4,1.83427]
[1743727909042,2.58235,1813.5,1813.4,1.83427]
[1743727909248,2.58235,1813.5,1813.4,3.31297]
[1743727910843,1.10331,1813.4,1813.3,4.31113]
[1743727911049,1.10338,1813.3,1813.2,1.11166331]
[1743727911356,4.76138,1813.3,1813.2,1.11166331]
[1743727911544,6.25138,1813.3,1813.2,1.11166331]
[1743727911949,6.25138,1813.3,1813.2,2.54136331]
[1743727912854,6.25138,1813.3,1813.2,1.11166331]
[1743727913651,6.25138,1813.3,1813.2,2.54136331]
[1743727916456,5.148,1813.3,1813.2,2.54136331]
[1743727916857,6.25138,1813.3,1813.2,2.54136331]
[1743727919357,5.148,1813.3,1813.2,2.54136331]
[1743727919758,6.25138,1813.3,1813.2,2.54136331]
[1743727920356,7.96918,1813.3,1813.2,0.00826331]
[1743727920564,9.36578,1813.3,1813.2,0.00826331]
[1743727920763,11.86578,1813.3,1813.2,0.00826331]
[1743727921060,1.10356,1813.0,1812.9,1.5025]
[1743727921362,1.10379,1812.7,1812.6,1.10376]
[1743727921562,4.76079,1812.7,1812.6,3.31456]
[1743727921756,4.76079,1812.7,1812.6,1.5025]
[1743727921953,1.10386,1812.6,1812.5,1.10386]
[1743727922158,3.21086,1812.6,1812.5,2.61462331]
[1743727922357,6.41866,1812.6,1812.5,1.51076331]
[1743727922552,6.41866,1812.6,1812.5,2.61462331]
[1743727922752,6.41866,1812.6,1812.5,1.51076331]
[1743727925260,6.41866,1812.6,1812.5,1e-08]
[1743727925460,9.72498199,1812.6,1812.5,1e-08]
[1743727925658,4.40322199,1812.6,1812.5,1e-08]
[1743727925860,9.11912199,1812.6,1812.5,1e-08]
[1743727927065,5.52098,1812.0,1811.5,3.2078]
[1743727927369,5.52098,1812.0,1811.6,1.10437]
[1743727927370,1.1043,1811.8,1811.6,1.10437]
[1743727927664,4.48282199,1811.9,1811.8,1.10429]
[1743727927665,1.10423,1811.9,1811.8,1.10429]
[1743727927966,3.658,1811.9,1811.8,1.10429]
[1743727928169,3.658,1811.9,1811.7,1.3938]
[1743727928370,1.10429,1811.8,1811.7,1.3938]
[1743727928864,1.10441,1811.6,1811.5,3.2078]
[1743727929066,3.658,1811.6,1811.5,4.31227]
[1743727930067,4.76241,1811.6,1811.5,4.31227]
[1743727930567,3.658,1811.6,1811.5,4.31227]
[1743727931067,4.76241,1811.6,1811.5,4.31227]
[1743727931267,3.658,1811.6,1811.5,4.31227]
[1743727935276,1.1043,1811.8,1811.7,1.10435]
[1743727935476,3.659,1811.8,1811.7,1.10435]
[1743727935969,3.659,1811.8,1811.7,2.50265]
[1743727936773,3.659,1811.8,1811.7,5.71045]
[1743727937271,0.00826331,1812.0,1811.9,1.10423]
[1743727937574,3.66726331,1812.0,1811.9,4.31203]
[1743727943172,3.31e-06,1812.0,1811.9,4.31203]
[1743727943373,3.31e-06,1812.0,1811.9,12.78203]
[1743727945479,3.31e-06,1812.0,1811.9,14.61737689]
[1743727945679,3.31e-06,1812.0,1811.9,14.17553]
[1743727949784,3.31e-06,1812.0,1811.9,11.67553]
[1743727950788,3.31e-06,1812.0,1811.9,14.17553]
[1743727952583,1.1377167,1812.2,1812.1,1.10411]
[1743727952782,2.1202,1812.6,1812.5,1.10386]
[1743727952979,5.7782,1812.6,1812.5,1.10386]
[1743727953392,5.7782,1812.6,1812.5,2.53166]
[1743727957882,55.67726331,1812.7,1812.5,2.53166]
[1743727957883,55.67726331,1812.7,1812.6,1.1038]
[1743727958086,59.33426331,1812.7,1812.6,2.6061]
[1743727959793,60.73296331,1812.7,1812.6,2.6061]
[1743727961990,60.73296331,1812.7,1812.6,1.1038]
[1743727963296,1.10386,1812.5,1812.4,1.10387]
[1743727963798,6.90337855,1812.5,1812.4,1.10387]
[1743727964000,8.36387855,1812.5,1812.4,1.10387]
[1743727964700,1.4605,1812.5,1812.4,1.10387]
[1743727965302,2.952,1812.5,1812.4,1.10387]
[1743727965901,4.05586,1812.5,1812.4,1.10387]
[1743727966101,6.55586,1812.5,1812.4,1.10387]
[1743727966496,1.10395,1812.4,1812.3,1.10392]
[1743727966689,6.20165,1812.4,1812.3,1.10392]
[1743727968196,1.10398,1812.3,1812.2,1.10398]
[1743727968398,1.10398,1812.3,1812.0,4.17824]
[1743727968399,1.10411,1812.1,1812.0,1.10411]
[1743727968603,3.657,1812.1,1812.0,1.10411]
[1743727968995,4.3649,1812.1,1812.0,1.10411]
[1743727969195,5.7748,1812.1,1812.0,1.10411]
[1743727970001,6.87891,1812.1,1812.0,1.10411]
[1743727970702,5.7748,1812.1,1812.0,1.10411]
[1743727971297,6.87891,1812.1,1812.0,1.10411]
[1743727972712,5.7748,1812.1,1812.0,1.10411]
[1743727972903,6.87891,1812.1,1812.0,1.10411]
[1743727973103,5.7748,1812.1,1812.0,1.10411]
[1743727974515,5.7748,1812.1,1812.0,3.27631]
[1743727975016,5.7748,1812.1,1812.0,2.57421]
[1743727975612,3.657,1812.1,1812.0,2.57421]
[1743727979410,1.383,1812.3,1812.0,1.4701]
[1743727979613,4.3767,1812.4,1812.3,1.10398]
[1743727980118,5.48062,1812.4,1812.3,1.10398]
[1743727980419,4.3767,1812.4,1812.3,1.10398]
[1743727980715,4.3767,1812.4,1812.3,2.51018]
[1743727981517,3.657,1812.4,1812.3,2.51018]
[1743727982016,3.657,1812.4,1812.3,5.71798]
[1743727983419,2.1951,1812.5,1812.4,1.10392]
[1743727983608,5.8521,1812.5,1812.4,2.57982]
[1743727983813,6.95596,1812.5,1812.4,2.57982]
[1743727984011,1.10398,1812.4,1812.3,1.10395]
[1743727984207,3.30118,1812.4,1812.3,1.10395]
[1743727984412,1.10405,1812.3,1812.2,1.10401]
[1743727984714,2.60805,1812.3,1812.2,1.10401]
[1743727985420,2.69974013,1812.3,1812.2,1.10401]
[1743727985718,2.69972998,1812.3,1812.2,1.10401]
[1743727985914,5.90752871,1812.3,1812.2,1.10401]
[1743727986314,1.504,1812.3,1812.2,1.10401]
[1743727986514,1.504,1812.3,1812.2,3.30981]
[1743727987015,2.60798,1812.3,1812.2,3.30981]
[1743727987219,1.504,1812.3,1812.2,3.30981]
[1743727987616,2.60798,1812.3,1812.2,3.30981]
[1743727987823,1.504,1812.3,1812.2,3.30981]
[1743727989022,2.60798,1812.3,1812.2,3.30981]
[1743727989425,1.504,1812.3,1812.2,3.30981]
[1743727989623,2.60798,1812.3,1812.2,3.30981]
[1743727990125,2.60798,1812.3,1812.2,2.59305]
[1743727990325,1.10411,1812.1,1812.0,1.86352]
[1743727990519,4.76111,1812.1,1812.0,2.62002]
[1743727990917,6.22261,1812.1,1812.0,2.62002]
[1743727991119,6.22261,1812.1,1812.0,1.10412]
[1743727992618,6.22261,1812.1,1812.0,2.62002]
[1743727993624,4.76111,1812.1,1812.0,2.62002]
[1743727994025,4.76111,1812.1,1812.0,3.33302]
[1743727994827,3.657,1812.1,1812.0,3.33302]
[1743727995430,4.76111,1812.1,1812.0,3.33302]
[1743727997224,3.657,1812.1,1812.0,3.33302]
[1743727997421,1.10411,1812.1,1812.0,3.33302]
[1743727997722,1.10411,1812.1,1812.0,3.33307]
[1743727997723,3.657,1812.1,1812.0,3.33307]
[1743727999226,4.76111,1812.1,1812.0,1.5159]
[1743727999432,4.76111,1812.1,1811.9,5.07141]
[1743727999433,1.10423,1811.9,1811.8,0.00826331]
[1743728000331,3.19213,1811.9,1811.8,0.00826331]
[1743728000826,3.19213,1811.9,1811.8,1.11255331]
[1743728001023,3.19213,1811.9,1811.8,0.00826331]
[1743728001529,3.19213,1811.9,1811.8,1.11255331]
[1743728001925,5.69213,1811.9,1811.8,1e-08]
[1743728002128,2.76073,1811.8,1811.4,0.7116]
[1743728002330,1.10447,1811.6,1811.5,1.10446]
[1743728002734,2.61907,1811.6,1811.5,1.10446]
[1743728004326,2.61905,1811.6,1811.5,1.10447]
[1743728005126,2.61905,1811.6,1811.5,2.56117]
[1743728006233,1.5146,1811.6,1811.5,2.56117]
[1743728006530,2.61901,1811.6,1811.5,2.56117]
[1743728007328,2.61901,1811.6,1811.5,1.4567]
[1743728007529,2.61901,1811.6,1811.5,2.56117]
[1743728007728,2.61901,1811.6,1811.5,1.4567]
[1743728008131,1.5146,1811.6,1811.5,2.56117]
[1743728008332,2.61901,1811.6,1811.5,2.56117]
[1743728009237,2.61901,1811.6,1811.5,1.4567]
[1743728009538,2.61901,1811.6,1811.5,2.56117]
[1743728009738,1.10447,1811.5,1811.4,1.4446]
[1743728009939,1.10447,1811.5,1811.4,2.9468]
[1743728010140,1.10447,1811.5,1811.4,4.05129]
[1743728013349,2.61906,1811.6,1811.5,1.10447]
[1743728013540,2.61906,1811.6,1811.5,1.3947]
[1743728014936,2.61906,1811.6,1811.5,2.49917]
[1743728015449,2.61906,1811.6,1811.5,1.3947]
[1743728015636,1.10446,1811.6,1811.5,1.3947]
[1743728016545,1.10446,1811.6,1811.5,2.49917]
[1743728016938,6.26644331,1811.7,1811.6,1.10441]
[1743728017145,6.26644331,1811.7,1811.6,1.5158]
[1743728017844,6.35810323,1811.7,1811.6,1.5158]
[1743728018043,6.26644331,1811.7,1811.6,1.5158]
[1743728018242,6.26644331,1811.7,1811.6,2.62021]
[1743728018437,1.11264331,1811.7,1811.6,2.62021]
[1743728018642,3.66526331,1811.7,1811.6,2.62021]
[1743728020547,0.00826331,1811.7,1811.6,2.62021]
[1743728025851,1e-08,1811.7,1811.6,5.12021]
[1743728026248,1e-08,1811.7,1811.6,11.09021]
[1743728028547,1e-08,1811.7,1811.6,8.59021]
[1743728031355,1e-08,1811.7,1811.6,2.62021]
[1743728041267,1.10435001,1811.7,1811.5,3.21606331]
[1743728041459,1.10441,1811.6,1811.5,4.32048331]
[1743728041764,3.95361001,1811.7,1811.6,1.10441]
[1743728042664,3.95355001,1811.7,1811.6,1.10441]
[1743728045973,2.84920001,1811.7,1811.6,1.10441]
[1743728046475,3.95355001,1811.7,1811.6,1.10441]
[1743728046868,2.84920001,1811.7,1811.6,1.10441]
[1743728047173,5.78600001,1811.7,1811.6,1.10441]
[1743728047373,5.78600001,1811.7,1811.6,2.54901]
[1743728048073,6.89035001,1811.7,1811.6,2.54901]
[1743728048274,5.78600001,1811.7,1811.6,2.54901]
[1743728049766,6.89035001,1811.7,1811.6,2.54901]
[1743728050770,6.89035001,1811.7,1811.6,1.10441]
[1743728051076,1.10441,1811.6,1811.5,1.11268331]
[1743728051278,2.50251,1811.6,1811.5,1.11268331]
[1743728051476,3.22071,1811.6,1811.5,1.11268331]
[1743728052479,3.22071,1811.6,1811.5,2.55118331]
[1743728052778,2.50251,1811.6,1811.5,2.55118331]
[1743728052970,2.50251,1811.6,1811.5,0.00826331]
[1743728054681,2.50251,1811.6,1811.5,1.11273331]
[1743728055978,2.50251,1811.6,1811.5,0.00826331]
[1743728056579,2.50251,1811.6,1811.5,1.11273331]
[1743728056981,1.3981,1811.6,1811.5,1.11273331]
[1743728057182,2.50251,1811.6,1811.5,3.30613331]
[1743728057584,1.3981,1811.6,1811.5,3.30613331]
[1743728058083,2.50251,1811.6,1811.5,3.30613331]
[1743728058881,1.10441,1811.6,1811.5,3.30613331]
[1743728061086,6.87100001,1811.7,1811.6,1.10441]
[1743728061289,6.87100001,1811.7,1811.6,2.56551]
[1743728061986,1.10441,1811.6,1811.5,1.11272331]
[1743728062184,2.52471,1811.6,1811.5,0.00826331]
[1743728062378,2.52471,1811.6,1811.5,1.11273331]
[1743728062584,1.10441,1811.6,1811.5,1.11273331]
[1743728062983,1.10441,1811.6,1811.5,2.57383331]
[1743728063777,6.87571001,1811.7,1811.6,1.10441]
[1743728063989,6.87571001,1811.7,1811.6,1.3828]
[1743728064482,1.10441001,1811.7,1811.6,2.48721]
[1743728064688,4.75941001,1811.7,1811.6,3.19211]
[1743728065082,3.65500001,1811.7,1811.6,3.19211]
[1743728065482,3.65500001,1811.7,1811.6,6.39991]
[1743728066090,3.65500001,1811.7,1811.6,3.19211]
[1743728066579,4.75935001,1811.7,1811.6,3.19211]
[1743728066778,3.65500001,1811.7,1811.6,3.19211]
[1743728067589,1e-08,1811.7,1811.6,3.19211]
[1743728067788,1e-08,1811.7,1811.6,6.39991]
[1743728072791,1e-08,1811.7,1811.6,8.89991]
[1743728073683,1e-08,1811.7,1811.6,14.86991]
[1743728083103,1e-08,1811.7,1811.6,12.36991]
[1743728083602,1e-08,1811.7,1811.6,11.66501]
[1743728083902,1.52110001,1811.7,1811.6,11.66501]
[1743728084099,1.52110001,1811.7,1811.6,5.69501]
[1743728086202,1e-08,1811.7,1811.6,5.69501]
[1743728086903,1e-08,1811.7,1811.6,4.31221]
[1743728087095,1.43340001,1811.7,1811.6,4.31221]
[1743728087796,1e-08,1811.7,1811.6,5.79331]
[1743728088094,1e-08,1811.7,1811.6,7.24341]
[1743728088606,1e-08,1811.7,1811.6,9.74341]
[1743728090096,1e-08,1811.7,1811.6,15.71341]
[1743728091806,1e-08,1811.7,1811.6,13.21341]
[1743728093101,1e-08,1811.7,1811.6,11.76331]
[1743728093294,2.11400001,1811.7,1811.6,11.76331]
[1743728093494,2.11400001,1811.7,1811.6,10.28221]
[1743728095996,2.11400001,1811.7,1811.6,4.31221]
[1743728097907,2.11400001,1811.7,1811.6,1.10441]
[1743728098310,2.11400001,1811.7,1811.6,4.31221]
[1743728098802,5.76600001,1811.7,1811.6,4.31221]
[1743728100606,5.76600001,1811.7,1811.2,5.52323]
[1743728100607,11.47380001,1811.7,1810.9,5.52405]
[1743728100806,4.31244,1811.3,1811.2,1.10465]
[1743728101001,6.8598,1811.3,1811.2,1.10465]
[1743728101201,3.652,1811.3,1811.2,1.10465]
[1743728102319,3.652,1811.3,1811.2,4.02495]
[1743728104312,2.2224,1811.4,1811.3,1.10459]
[1743728104512,2.2224,1811.4,1811.3,2.60089]
[1743728105217,1e-08,1811.7,1811.4,2.76122]
[1743728105408,1e-08,1811.7,1811.6,1.10441]
[1743728105604,1.42440001,1811.7,1811.6,1.10441]
[1743728106217,2.52875001,1811.7,1811.6,1.10441]
[1743728106415,1.42440001,1811.7,1811.6,1.10441]
[1743728107616,1.42440001,1811.7,1811.6,2.58781]